bitfinex/quotes_BTCUSD_20250618
["timestamp","ask_amount","ask_price","bid_price","bid_amount"]
[1750267359669,0.58305701,104370.0,104360.0,0.44761066]
[1750267360949,0.8066344,104370.0,104360.0,0.44761066]
[1750267361153,0.8066344,104370.0,104360.0,0.45719259]
[1750267361391,0.8066344,104370.0,104360.0,0.46677379]
[1750267361589,0.8066344,104370.0,104360.0,0.45719222]
[1750267362003,0.8066344,104370.0,104360.0,0.44761038]
[1750267362412,0.8066344,104370.0,104360.0,0.43802845]
[1750267362616,0.8066344,104370.0,104360.0,0.44761038]
[1750267362835,0.8066344,104370.0,104360.0,0.45719222]
[1750267363041,0.8066344,104370.0,104360.0,0.46677397]
[1750267363665,0.29792303,104370.0,104360.0,0.56301518]
[1750267363874,0.21076909,104380.0,104370.0,0.27418816]
[1750267364088,0.50869212,104380.0,104370.0,0.27418816]
[1750267364297,0.53154928,104380.0,104370.0,0.26460714]
[1750267364511,0.521969,104380.0,104370.0,0.25502594]
[1750267364715,0.521969,104380.0,104370.0,0.26460723]
[1750267364923,0.521969,104380.0,104370.0,0.27418834]
[1750267365163,0.521969,104380.0,104370.0,0.28476936]
[1750267365574,0.81989203,104380.0,104370.0,0.0644]
[1750267365792,0.81989203,104380.0,104370.0,0.16152]
[1750267367750,0.81989203,104380.0,104370.0,0.001]
[1750267367960,0.81989203,104380.0,104370.0,0.16152]
[1750267368186,0.81989203,104380.0,104370.0,0.001]
[1750267368393,0.81989203,104380.0,104370.0,0.16152]
[1750267369118,0.521969,104380.0,104370.0,0.36272714]
[1750267369326,0.521969,104380.0,104370.0,0.42392714]
[1750267369536,0.81031166,104380.0,104370.0,0.22272]
[1750267369763,0.81031166,104380.0,104370.0,0.001]
[1750267369968,0.81031166,104380.0,104370.0,0.16152]
[1750267370808,0.51238863,104380.0,104370.0,0.41604594]
[1750267371239,0.51238863,104380.0,104370.0,0.22442]
[1750267371447,0.7874545,104380.0,104370.0,0.16152]
[1750267371667,0.81033351,104380.0,104370.0,0.16152]
[1750267373031,0.53157049,104380.0,104370.0,0.41664594]
[1750267373249,0.55072983,104380.0,104370.0,0.43580788]
[1750267373461,0.35912207,104380.0,104370.0,0.44538853]
[1750267373671,0.36870235,104380.0,104370.0,0.44538853]
[1750267373907,0.33624361,104380.0,104370.0,0.43580798]
[1750267374118,0.52785119,104380.0,104370.0,0.26570705]
[1750267374345,0.50869108,104380.0,104370.0,0.22498]
[1750267375694,0.53157707,104380.0,104370.0,0.22498]
[1750267376555,0.53157707,104380.0,104370.0,0.0645]
[1750267376767,0.53157707,104380.0,104370.0,0.22498]
[1750267379832,0.8295001,104380.0,104370.0,0.001]
[1750267380050,0.8295001,104380.0,104370.0,0.16148]
[1750267380294,0.8295001,104380.0,104370.0,0.001]
[1750267380572,0.19162594,104370.0,104350.0,0.07398]
[1750267380783,0.49914936,104360.0,104350.0,0.19158]
[1750267380998,0.2012458,104350.0,104340.0,0.0303]
[1750267381219,0.79709186,104350.0,104340.0,0.0001]
[1750267381450,0.79709186,104350.0,104320.0,0.0001]
[1750267381451,0.2108687,104330.0,104320.0,0.0001]
[1750267381681,0.50879173,104330.0,104320.0,0.16058]
[1750267381909,0.56686801,104330.0,104320.0,0.0001]
[1750267382159,0.85809489,104330.0,104320.0,0.0001]
[1750267382402,0.58828474,104330.0,104320.0,0.00057341]
[1750267382868,0.53690479,104330.0,104320.0,0.19355341]
[1750267383305,0.53790479,104330.0,104320.0,0.19355341]
[1750267383515,0.53790479,104330.0,104320.0,0.16105341]
[1750267384190,0.53790479,104330.0,104320.0,0.16129341]
[1750267384615,0.53890479,104330.0,104320.0,0.16129341]
[1750267384847,0.24098176,104330.0,104320.0,0.16129341]
[1750267385048,0.53890479,104330.0,104320.0,0.19369341]
[1750267385442,0.53890479,104330.0,104320.0,0.39499708]
[1750267385711,0.53890479,104330.0,104320.0,0.40458278]
[1750267385932,0.54848976,104330.0,104320.0,0.44586839]
[1750267386143,0.54848976,104330.0,104320.0,0.42669708]
[1750267386350,0.54848976,104330.0,104320.0,0.43628287]
[1750267386829,0.54848976,104330.0,104320.0,0.44586857]
[1750267387043,0.54848976,104330.0,104320.0,0.28514857]
[1750267387260,0.53890516,104330.0,104320.0,0.22547341]
[1750267387469,0.52932029,104330.0,104320.0,0.22547341]
[1750267387681,0.52932029,104330.0,104320.0,0.42677708]
[1750267389385,0.30950781,104330.0,104320.0,0.55177539]
[1750267389807,0.30950754,104330.0,104320.0,0.55177539]
[1750267390016,0.32867673,104330.0,104320.0,0.55177539]
[1750267390656,0.52996028,104330.0,104320.0,0.54219015]
[1750267390868,0.52996028,104330.0,104320.0,0.55177548]
[1750267391080,0.33826087,104330.0,104320.0,0.56136072]
[1750267391506,0.30950717,104330.0,104320.0,0.56136072]
[1750267391713,0.31909177,104330.0,104320.0,0.56136072]
[1750267391943,0.31909167,104330.0,104320.0,0.56136072]
[1750267392372,0.30950717,104330.0,104320.0,0.56136072]
[1750267392994,0.31909149,104330.0,104320.0,0.56136072]
[1750267393457,0.30950717,104330.0,104320.0,0.56136072]
[1750267394156,0.33826069,104330.0,104320.0,0.56136072]
[1750267394379,0.5299601,104330.0,104320.0,0.06467341]
[1750267394587,0.51079173,104330.0,104320.0,0.16113341]
[1750267394798,0.51079173,104330.0,104320.0,0.3528512]
[1750267395005,0.51079173,104330.0,104320.0,0.40212287]
[1750267395144,0.5203766,104330.0,104320.0,0.452594]
[1750267395355,0.51079209,104330.0,104320.0,0.43342287]
[1750267395563,0.51079209,104330.0,104320.0,0.44300857]
[1750267395808,0.50120731,104330.0,104320.0,0.22253341]
[1750267396015,0.50120731,104330.0,104320.0,0.4142512]
[1750267396220,0.50120731,104330.0,104320.0,0.03067341]
[1750267396426,0.50120731,104330.0,104320.0,0.00057341]
[1750267396643,0.89527956,104330.0,104320.0,0.00057341]
[1750267396857,1.22718458,104330.0,104320.0,0.00057341]
[1750267397079,0.20134209,104300.0,104290.0,0.0001]
[1750267397306,0.58381684,104300.0,104290.0,0.40249162]
[1750267397513,0.5934041,104300.0,104290.0,0.55080965]
[1750267397726,0.5934041,104300.0,104290.0,0.53163338]
[1750267397925,0.57422948,104300.0,104290.0,0.52204501]
[1750267398134,0.57422948,104300.0,104290.0,0.53163356]
[1750267398362,0.57422948,104300.0,104290.0,0.54322202]
[1750267398585,0.57422948,104300.0,104290.0,0.55281039]
[1750267398793,0.57422948,104300.0,104290.0,0.56539866]
[1750267399443,0.57422948,104300.0,104290.0,0.55581039]
[1750267400126,0.57422948,104300.0,104290.0,0.56539857]
[1750267400330,0.57422948,104300.0,104290.0,0.55581039]
[1750267400532,0.57422948,104300.0,104290.0,0.56539866]
[1750267400964,0.61379276,104300.0,104290.0,0.56539866]
[1750267401187,0.24090546,104300.0,104290.0,0.56539811]
[1750267401412,0.43162502,104300.0,104290.0,0.56539756]
[1750267401613,0.42203766,104300.0,104290.0,0.56539756]
[1750267401814,0.43162492,104300.0,104290.0,0.56539756]
[1750267402276,0.42203757,104300.0,104290.0,0.56539756]
[1750267402506,0.03956328,104300.0,104290.0,0.56539756]
[1750267402728,0.01917214,104310.0,104300.0,0.25161662]
[1750267402941,0.02875848,104310.0,104300.0,0.37965838]
[1750267403153,0.01917214,104310.0,104300.0,0.37965838]
[1750267403364,0.02875839,104310.0,104300.0,0.37965838]
[1750267403821,0.01917214,104310.0,104300.0,0.37965838]
[1750267404020,0.01917214,104310.0,104300.0,0.38065838]
[1750267405060,0.39205944,104310.0,104300.0,0.38165838]
[1750267405266,0.40164578,104310.0,104300.0,0.38165838]
[1750267405669,0.39205944,104310.0,104300.0,0.38165838]
[1750267406482,0.61255537,104310.0,104300.0,0.38165856]
[1750267406692,0.61255537,104310.0,104300.0,0.5755913]
[1750267406900,0.61255537,104310.0,104300.0,0.58517856]
[1750267407104,0.60296939,104310.0,104300.0,0.58517856]
[1750267407312,0.40164642,104310.0,104300.0,0.58517856]
[1750267407522,0.40164642,104310.0,104300.0,0.59476564]
[1750267407727,0.6125561,104310.0,104300.0,0.59476564]
[1750267408141,0.40164642,104310.0,104300.0,0.59476564]
[1750267408346,0.4405438,104310.0,104300.0,0.59476564]
[1750267408548,0.45013051,104310.0,104300.0,0.59476564]
[1750267408758,0.63228052,104310.0,104300.0,0.3720713]
[1750267408966,0.63228052,104310.0,104300.0,0.5326713]
[1750267409170,0.63228052,104310.0,104300.0,0.3720713]
[1750267409374,0.63228052,104310.0,104300.0,0.5326713]
[1750267409593,0.63228052,104310.0,104300.0,0.54225856]
[1750267409796,0.64186732,104310.0,104300.0,0.54225856]
[1750267410412,0.64186732,104310.0,104300.0,0.36248394]
[1750267410649,0.64549688,104310.0,104300.0,0.35435455]
[1750267410855,0.64549688,104310.0,104300.0,0.39594218]
[1750267411071,0.64549688,104310.0,104300.0,0.38635455]
[1750267411072,0.63591017,104310.0,104300.0,0.38635455]
[1750267411285,0.63591017,104310.0,104300.0,0.1626]
[1750267412947,0.63591017,104310.0,104300.0,0.002]
[1750267413157,0.63591017,104310.0,104300.0,0.1626]
[1750267413782,0.61310765,104310.0,104300.0,0.1626]
[1750267414610,0.63590515,104310.0,104300.0,0.1626]
[1750267415027,0.63590515,104310.0,104300.0,0.36394218]
[1750267415231,0.6454915,104310.0,104300.0,0.43652954]
[1750267415434,0.4451761,104310.0,104300.0,0.43652954]
[1750267415848,0.46434888,104310.0,104300.0,0.43652963]
[1750267416050,0.45476263,104310.0,104300.0,0.43652963]
[1750267416252,0.4451761,104310.0,104300.0,0.42694218]
[1750267416465,0.43558948,104310.0,104300.0,0.2256]
[1750267416889,0.43558948,104310.0,104300.0,0.1626]
[1750267418073,0.47442731,104310.0,104300.0,0.35435455]
[1750267418288,0.61304737,104310.0,104300.0,0.44571726]
[1750267418496,0.04842399,104310.0,104300.0,0.5515461]
[1750267418747,0.06759686,104310.0,104300.0,0.5515461]
[1750267418969,0.0484239,104310.0,104300.0,0.5515461]
[1750267419405,0.05801015,104310.0,104300.0,0.5515461]
[1750267419817,0.0484239,104310.0,104300.0,0.5515461]
[1750267420077,0.05801015,104310.0,104300.0,0.5515461]
[1750267420485,0.0484239,104310.0,104300.0,0.5515461]
[1750267420701,0.05801015,104310.0,104300.0,0.5515461]
[1750267420920,0.07718321,104310.0,104300.0,0.5515461]
[1750267421137,0.45007051,104310.0,104300.0,0.5515461]
[1750267421993,0.44048389,104310.0,104300.0,0.5515461]
[1750267422207,0.45007051,104310.0,104300.0,0.5515461]
[1750267422853,0.64180668,104310.0,104300.0,0.5515461]
[1750267423066,0.64180741,104310.0,104300.0,0.55154628]
[1750267423477,0.64180741,104310.0,104300.0,0.56113345]
[1750267424337,0.43089782,104310.0,104300.0,0.56113281]
[1750267424992,0.43089736,104310.0,104300.0,0.56113281]
[1750267425169,0.42131111,104310.0,104300.0,0.56113281]
[1750267425373,0.43089736,104310.0,104300.0,0.56113281]
[1750267425576,0.03883783,104310.0,104300.0,0.56113281]
[1750267425814,0.40164349,104320.0,104310.0,0.22049548]
[1750267426042,0.41122919,104320.0,104310.0,0.38043724]
[1750267426269,0.40164349,104320.0,104310.0,0.38043724]
[1750267426660,0.41122919,104320.0,104310.0,0.38043724]
[1750267426863,0.33651295,104320.0,104310.0,0.38043724]
[1750267427178,0.02875619,104320.0,104310.0,0.38043724]
[1750267427331,0.32692725,104320.0,104310.0,0.38043724]
[1750267427544,0.35076046,104320.0,104310.0,0.38043724]
[1750267427755,0.83206443,104320.0,104310.0,0.36126473]
[1750267427961,0.53389337,104320.0,104310.0,0.38043806]
[1750267428142,0.52430776,104320.0,104310.0,0.38043806]
[1750267428558,0.82247882,104320.0,104310.0,0.38043806]
[1750267428759,0.52430776,104320.0,104310.0,0.38043806]
[1750267428975,0.59891471,104320.0,104310.0,0.3900245]
[1750267430252,1.00091396,104320.0,104310.0,0.0637]
[1750267430454,0.62813595,104320.0,104310.0,0.41599617]
[1750267430858,0.62813595,104320.0,104310.0,0.42558288]
[1750267431524,0.62813595,104320.0,104310.0,0.16056]
[1750267431935,1.00091396,104320.0,104310.0,0.16056]
[1750267432572,1.00091396,104320.0,104310.0,0.35229617]
[1750267432928,1.00091396,104320.0,104310.0,0.16056]
[1750267433662,0.99899396,104320.0,104310.0,0.35229617]
[1750267433893,0.25343794,104320.0,104310.0,0.36188297]
[1750267434126,0.62621595,104320.0,104310.0,0.41325612]
[1750267434361,0.63580183,104320.0,104310.0,0.44425612]
[1750267434583,0.62447423,104320.0,104310.0,0.43466959]
[1750267435047,0.61488862,104320.0,104310.0,0.41549617]
[1750267435279,0.61488862,104320.0,104310.0,0.42508297]
[1750267435745,0.61488862,104320.0,104310.0,0.16056]
[1750267435746,0.60530274,104320.0,104310.0,0.16056]
[1750267435964,0.60530274,104320.0,104300.0,0.10508]
[1750267435965,0.20132279,104310.0,104300.0,0.10508]
[1750267436175,0.02876216,104300.0,104290.0,0.38011957]
[1750267436393,0.4111278,104300.0,104290.0,0.55026812]
[1750267436632,0.39195208,104300.0,104290.0,0.55026812]
[1750267437056,0.37277801,104300.0,104290.0,0.55026812]
[1750267437254,0.39195097,104310.0,104300.0,0.28241643]
[1750267437459,0.37277801,104310.0,104300.0,0.28241643]
[1750267437706,0.5741008,104310.0,104300.0,0.27282935]
[1750267438124,0.39195097,104310.0,104300.0,0.28241643]
[1750267438324,0.59327394,104310.0,104300.0,0.28341643]
[1750267438738,0.59327394,104310.0,104300.0,0.27382935]
[1750267439364,0.59327394,104310.0,104300.0,0.25465455]
[1750267439570,0.5836876,104310.0,104300.0,0.001]
[1750267439998,0.74583682,104310.0,104300.0,0.001]
[1750267440220,0.6496876,104310.0,104300.0,0.16156]
[1750267441689,0.65637182,104310.0,104300.0,0.001]
[1750267441893,0.65637161,104310.0,104300.0,0.16156]
[1750267442302,0.65637161,104310.0,104300.0,0.001]
[1750267442510,0.7525206,104310.0,104300.0,0.16156]
[1750267443565,0.65637219,104310.0,104300.0,0.16156]
[1750267443778,0.59037219,104310.0,104300.0,0.16156]
[1750267444007,0.5836876,104310.0,104300.0,0.43558981]
[1750267444211,0.5836876,104310.0,104300.0,0.22466]
[1750267444212,0.57410098,104310.0,104300.0,0.22466]
[1750267445183,0.57410098,104310.0,104300.0,0.16156]
[1750267445613,0.59690294,104310.0,104300.0,0.16156]
[1750267446399,0.22412493,104310.0,104300.0,0.16156]
[1750267446613,0.57410098,104310.0,104300.0,0.16156]
[1750267446820,0.59690294,104310.0,104300.0,0.16156]
[1750267448359,0.59690294,104310.0,104300.0,0.001]
[1750267448578,0.59690294,104310.0,104300.0,0.16156]
[1750267449022,0.59690294,104310.0,104300.0,0.0336]
[1750267449272,0.22412493,104310.0,104300.0,0.0336]
[1750267449502,0.57410098,104310.0,104300.0,0.0336]
[1750267449710,0.59690294,104310.0,104300.0,0.0336]
[1750267450348,0.59690294,104310.0,104300.0,0.0663]
[1750267450807,0.59690294,104310.0,104300.0,0.4377899]
[1750267451029,0.5127727,104310.0,104300.0,0.42820227]
[1750267451234,0.48997074,104310.0,104300.0,0.42820227]
[1750267451666,0.78820531,104310.0,104300.0,0.4377899]
[1750267452099,0.48997074,104310.0,104300.0,0.4377899]
[1750267452513,0.48997074,104310.0,104300.0,0.44737744]
[1750267453862,0.50914389,104310.0,104300.0,0.45696489]
[1750267454085,0.21090932,104310.0,104300.0,0.44737744]
[1750267454323,0.80737846,104310.0,104300.0,0.44737744]
[1750267454587,0.61564229,104310.0,104300.0,0.4377899]
[1750267454801,0.61564229,104310.0,104300.0,0.45696461]
[1750267454802,0.61564174,104310.0,104300.0,0.45696461]
[1750267455030,0.62522827,104310.0,104300.0,0.45696471]
[1750267455272,0.62522827,104310.0,104300.0,0.44737735]
[1750267455482,0.31740726,104310.0,104300.0,0.46655178]
[1750267455751,0.32699342,104310.0,104300.0,0.45696461]
[1750267455963,0.33658004,104310.0,104300.0,0.45696461]
[1750267456173,0.33658004,104310.0,104300.0,0.44737735]
[1750267456350,0.33658004,104310.0,104300.0,0.45696471]
[1750267456566,0.32699342,104310.0,104300.0,0.45696471]
[1750267457048,0.63481461,104310.0,104300.0,0.46655197]
[1750267457288,0.62522799,104310.0,104300.0,0.46655188]
[1750267457752,0.29823457,104310.0,104300.0,0.56099291]
[1750267457979,0.36579733,104320.0,104310.0,0.28319557]
[1750267458209,0.3562119,104320.0,104310.0,0.38902349]
[1750267458443,0.32699048,104320.0,104310.0,0.37943733]
[1750267458797,0.33657618,104320.0,104310.0,0.37943742]
[1750267459157,0.32699048,104320.0,104310.0,0.38902367]
[1750267459579,0.56751214,104320.0,104310.0,0.35067793]
[1750267459757,0.55792681,104320.0,104310.0,0.42454297]
[1750267459905,0.85616138,104320.0,104310.0,0.41495617]
[1750267460103,0.55892681,104320.0,104310.0,0.41495617]
[1750267460311,0.35862323,104320.0,104310.0,0.44371593]
[1750267460512,0.35862277,104320.0,104310.0,0.46288872]
[1750267460713,0.36820847,104320.0,104310.0,0.45330256]
[1750267460930,0.36820847,104320.0,104310.0,0.4628889]
[1750267461146,0.36820847,104320.0,104310.0,0.45330256]
[1750267461351,0.37779435,104320.0,104310.0,0.45330256]
[1750267461557,0.36820847,104320.0,104310.0,0.44371612]
[1750267461962,0.36820847,104320.0,104310.0,0.45330246]
[1750267462395,0.39101658,104320.0,104310.0,0.44371612]
[1750267462748,0.40060246,104320.0,104310.0,0.45330256]
[1750267463111,0.39101658,104320.0,104310.0,0.4628889]
[1750267463338,0.34903716,104320.0,104310.0,0.46288826]
[1750267463557,0.35862249,104320.0,104310.0,0.46288826]
[1750267463940,0.35862249,104320.0,104310.0,0.4533021]
[1750267464149,0.37779371,104320.0,104310.0,0.4533021]
[1750267464794,0.37779371,104320.0,104310.0,0.43412932]
[1750267465107,0.56951232,104320.0,104310.0,0.43412932]
[1750267465259,0.56951232,104320.0,104310.0,0.44371576]
[1750267465433,0.55034147,104320.0,104310.0,0.42454288]
[1750267465629,0.55034147,104320.0,104310.0,0.43412932]
[1750267466049,0.35862323,104320.0,104310.0,0.54954358]
[1750267466248,0.04121753,104320.0,104310.0,0.54954358]
[1750267467310,0.002,104320.0,104310.0,0.56408443]
[1750267467764,0.002,104320.0,104310.0,0.93855667]
[1750267468186,0.001,104320.0,104310.0,0.56408443]
[1750267468429,0.001,104320.0,104310.0,0.60892443]
[1750267469045,0.33677288,104330.0,104320.0,0.28507434]
[1750267469248,0.33677288,104330.0,104320.0,0.3813161]
[1750267469449,0.34635711,104330.0,104320.0,0.3813161]
[1750267470198,0.35594143,104330.0,104320.0,0.5846361]
[1750267470629,0.57639482,104330.0,104320.0,0.36214534]
[1750267470830,0.03834134,104320.0,104310.0,0.32403548]
[1750267471031,0.33657591,104320.0,104310.0,0.41069108]
[1750267471245,0.34616179,104320.0,104310.0,0.59034367]
[1750267471367,0.34616179,104320.0,104310.0,0.58075742]
[1750267471559,0.33657582,104320.0,104310.0,0.59034367]
[1750267471771,0.34616152,104320.0,104310.0,0.59992983]
[1750267472174,0.32699021,104320.0,104310.0,0.59992983]
[1750267472382,0.33657591,104320.0,104310.0,0.59992983]
[1750267472581,0.32699011,104320.0,104310.0,0.60292983]
[1750267472857,0.34616133,104320.0,104310.0,0.60292983]
[1750267473142,0.34616133,104320.0,104310.0,0.60492983]
[1750267473347,0.34616206,104320.0,104310.0,0.60492983]
[1750267473550,0.32699057,104320.0,104310.0,0.60492983]
[1750267473769,0.31740505,104320.0,104310.0,0.60492983]
[1750267473973,0.32699057,104320.0,104310.0,0.60492983]
[1750267475148,0.31740505,104320.0,104310.0,0.60492983]
[1750267475351,0.33657618,104320.0,104310.0,0.60492983]
[1750267475850,0.32699048,104320.0,104310.0,0.60492983]
[1750267476088,0.32699048,104320.0,104310.0,0.54291779]
[1750267476089,0.52829461,104320.0,104310.0,0.54291779]
[1750267476297,0.32699094,104320.0,104310.0,0.5620902]
[1750267476501,0.31740533,104320.0,104310.0,0.5620902]
[1750267476988,0.32699094,104320.0,104310.0,0.5620902]
[1750267477213,0.31740533,104320.0,104310.0,0.5620902]
[1750267477943,0.34635711,104330.0,104320.0,0.28617434]
[1750267478146,0.03853831,104330.0,104320.0,0.3824161]
[1750267478384,0.13216546,104340.0,104330.0,0.2204532]
[1750267478520,0.14174868,104340.0,104330.0,0.54287496]
[1750267478932,0.15133227,104340.0,104330.0,0.54287496]
[1750267479155,0.18992299,104340.0,104330.0,0.54287496]
[1750267479509,0.18033931,104340.0,104330.0,0.54287496]
[1750267479730,0.18992299,104340.0,104330.0,0.54073343]
[1750267479936,0.19092299,104340.0,104330.0,0.54073343]
[1750267480361,0.20150676,104340.0,104330.0,0.54073343]
[1750267480568,0.36757569,104340.0,104330.0,0.54073343]
[1750267480770,0.38674332,104340.0,104330.0,0.54073343]
[1750267480972,0.37715946,104340.0,104330.0,0.54073343]
[1750267481384,0.36757569,104340.0,104330.0,0.54073343]
[1750267481595,0.37715946,104340.0,104330.0,0.54073343]
[1750267482028,0.3484086,104340.0,104330.0,0.58357343]
[1750267482277,0.3388252,104340.0,104330.0,0.58357343]
[1750267482497,0.04059063,104340.0,104330.0,0.58357343]
[1750267485514,0.002,104340.0,104330.0,0.89634885]
[1750267486560,0.03879881,104360.0,104350.0,0.28491096]
[1750267486815,0.03879881,104360.0,104350.0,0.54159272]
[1750267488751,0.03879881,104360.0,104350.0,0.54659272]
[1750267491066,0.04838019,104360.0,104350.0,0.54659272]
[1750267491269,0.03879881,104360.0,104350.0,0.54659272]
[1750267492266,0.33703338,104360.0,104350.0,0.54659272]
[1750267492469,0.33703338,104360.0,104350.0,0.38615272]
[1750267492668,0.33703338,104360.0,104350.0,0.58935272]
[1750267493098,0.03879881,104360.0,104350.0,0.58935272]
[1750267496648,5e-05,104360.0,104350.0,0.90212814]
[1750267499504,5e-05,104360.0,104350.0,0.89912814]
[1750267499819,5e-05,104360.0,104350.0,0.90412814]
[1750267500213,5e-05,104360.0,104350.0,0.60589357]
[1750267500429,0.29828457,104360.0,104350.0,0.44549357]
[1750267500826,0.29828457,104360.0,104350.0,0.38815272]
[1750267501036,0.30786605,104360.0,104350.0,0.59131272]
[1750267501241,5e-05,104360.0,104350.0,0.59131272]
[1750267501425,0.30786595,104360.0,104350.0,0.43095272]
[1750267501582,0.32646918,104360.0,104350.0,0.52481272]
[1750267501991,0.31688743,104360.0,104350.0,0.55771272]
[1750267502221,0.29772457,104360.0,104350.0,0.55771272]
[1750267502394,0.22999992,104370.0,104360.0,0.22039001]
[1750267502774,0.22999992,104370.0,104360.0,0.31663205]
[1750267502775,0.85499018,104370.0,104360.0,0.31663205]
[1750267502974,0.84540925,104370.0,104360.0,0.30705021]
[1750267503177,0.65378285,104370.0,104360.0,0.32621362]
[1750267503524,0.35654828,104370.0,104360.0,0.32621362]
[1750267503756,0.36612948,104370.0,104360.0,0.32621362]
[1750267504221,0.56733671,104370.0,104360.0,0.31663196]
[1750267504394,0.55775588,104370.0,104360.0,0.31663196]
[1750267504608,0.84640934,104370.0,104360.0,0.31663214]
[1750267504934,0.83682814,104370.0,104360.0,0.31663196]
[1750267505141,0.84640916,104370.0,104360.0,0.32621362]
[1750267505544,0.3565481,104370.0,104360.0,0.33579519]
[1750267505766,0.66436387,104370.0,104360.0,0.33579519]
[1750267505927,0.66436378,104370.0,104360.0,0.33579519]
[1750267506331,0.85598972,104370.0,104360.0,0.31663196]
[1750267506744,0.85598972,104370.0,104360.0,0.31663214]
[1750267506952,0.85598972,104370.0,104360.0,0.32621398]
[1750267507121,0.84640898,104370.0,104360.0,0.48657398]
[1750267507322,0.85599018,104370.0,104360.0,0.49615564]
[1750267507563,0.85599018,104370.0,104360.0,0.48657398]
[1750267508010,0.86557147,104370.0,104360.0,0.48657398]
[1750267508341,0.86557147,104370.0,104360.0,0.49615518]
[1750267508551,0.63562091,104370.0,104360.0,0.49615518]
[1750267508746,0.55775442,104370.0,104360.0,0.48657361]
[1750267509129,0.37570959,104370.0,104360.0,0.49615518]
[1750267509746,0.57691673,104370.0,104360.0,0.49615518]
[1750267509956,0.57691755,104370.0,104360.0,0.49615518]
[1750267510163,0.36612912,104370.0,104360.0,0.49615518]
[1750267510544,0.66436369,104370.0,104360.0,0.49615518]
[1750267511181,0.65478258,104370.0,104360.0,0.49615518]
[1750267511392,0.66436369,104370.0,104360.0,0.49615518]
[1750267511604,0.36612912,104370.0,104360.0,0.49615518]
[1750267511806,0.57691755,104370.0,104360.0,0.49615518]
[1750267512013,0.36612912,104370.0,104360.0,0.49615518]
[1750267512217,0.65478258,104370.0,104360.0,0.49615518]
[1750267512422,0.66436369,104370.0,104360.0,0.49615518]
[1750267512630,0.56733626,104370.0,104360.0,0.49615518]
[1750267512834,0.37571032,104370.0,104360.0,0.49615518]
[1750267513039,0.37571032,104370.0,104360.0,0.49615527]
[1750267513040,0.56733626,104370.0,104360.0,0.49615527]
[1750267513242,0.37571032,104370.0,104360.0,0.49615481]
[1750267513448,0.56733626,104370.0,104360.0,0.49615481]
[1750267513753,0.55775506,104370.0,104360.0,0.49615481]
[1750267514024,0.35654801,104370.0,104360.0,0.47699158]
[1750267514211,0.36612903,104370.0,104360.0,0.48657315]
[1750267514785,0.86557074,104370.0,104360.0,0.10582397]
[1750267514997,0.02874599,104360.0,104350.0,0.00958267]
[1750267515216,0.02874599,104360.0,104350.0,0.48655512]
[1750267515217,0.31739835,104360.0,104350.0,0.48655512]
[1750267515435,0.32697973,104360.0,104350.0,0.48655512]
[1750267515867,0.30781605,104360.0,104350.0,0.48655512]
[1750267516085,0.31739789,104360.0,104350.0,0.38813512]
[1750267516301,0.30781614,104360.0,104350.0,0.55045512]
[1750267516719,0.52820652,104360.0,104350.0,0.53129005]
[1750267516928,0.52820652,104360.0,104350.0,0.46939023]
[1750267517342,0.52820652,104360.0,104350.0,0.47039023]
[1750267517555,0.57334311,104360.0,104350.0,0.003]
[1750267517808,0.97138247,104360.0,104330.0,0.00972654]
[1750267518029,0.81690094,104340.0,104330.0,0.25670343]
[1750267518242,0.81690094,104340.0,104330.0,0.2662884]
[1750267518452,0.81690094,104340.0,104330.0,0.25670343]
[1750267518668,0.31740138,104340.0,104330.0,0.47715682]
[1750267518884,0.00958239,104350.0,104340.0,0.28342035]
[1750267519099,0.52822792,104350.0,104340.0,0.37007871]
[1750267519344,0.32698221,104350.0,104340.0,0.3892457]
[1750267519556,0.33656507,104350.0,104340.0,0.3892457]
[1750267519989,0.52822774,104350.0,104340.0,0.3796623]
[1750267520201,0.51864535,104350.0,104340.0,0.5303988]
[1750267520427,0.50906286,104350.0,104340.0,0.5303988]
[1750267520897,0.50906286,104350.0,104340.0,0.53998248]
[1750267521105,0.51006286,104350.0,104340.0,0.53998248]
[1750267521520,0.50048019,104350.0,104340.0,0.52081512]
[1750267521802,0.50148019,104350.0,104340.0,0.53039908]
[1750267522069,0.49189724,104350.0,104340.0,0.49959908]
[1750267522306,0.49189724,104350.0,104340.0,0.50918294]
[1750267522738,0.50148019,104350.0,104340.0,0.51876653]
[1750267522961,0.31939963,104350.0,104340.0,0.56074993]
[1750267523183,0.30981696,104350.0,104340.0,0.56074993]
[1750267523388,0.31939945,104350.0,104340.0,0.56074993]
[1750267523807,0.32898212,104350.0,104340.0,0.56074993]
[1750267524014,0.34814765,104350.0,104340.0,0.56074993]
[1750267524436,0.3385647,104350.0,104340.0,0.56074993]
[1750267524646,0.34814755,104350.0,104340.0,0.56074993]
[1750267524853,0.34814811,104350.0,104340.0,0.56074993]
[1750267525059,0.32898231,104350.0,104340.0,0.56074993]
[1750267525274,0.33856526,104350.0,104340.0,0.56074993]
[1750267525500,0.32898231,104350.0,104340.0,0.56074993]
[1750267525712,0.002,104350.0,104340.0,0.56074993]
[1750267525927,0.02116497,104350.0,104340.0,0.56074993]
[1750267526134,0.01158239,104350.0,104340.0,0.56074993]
[1750267526344,0.02116497,104350.0,104340.0,0.56074993]
[1750267527225,0.02116488,104350.0,104340.0,0.56074993]
[1750267528295,0.03074746,104350.0,104340.0,0.56074993]
[1750267528513,0.002,104350.0,104340.0,0.56074993]
[1750267528723,0.0115823,104350.0,104340.0,0.56074993]
[1750267528940,0.02116479,104350.0,104340.0,0.56074993]
[1750267529382,0.33856479,104350.0,104340.0,0.56074993]
[1750267529582,0.04033013,104350.0,104340.0,0.56074993]
[1750267529993,0.04033004,104350.0,104340.0,0.56074993]
[1750267530211,0.02116479,104350.0,104340.0,0.56074993]
[1750267530422,0.002,104350.0,104340.0,0.56074993]
[1750267531141,0.002,104350.0,104340.0,0.57529078]
[1750267531588,0.002,104350.0,104340.0,0.87323448]
[1750267533390,0.002,104350.0,104340.0,1.17117818]
[1750267533607,0.002,104350.0,104340.0,1.39841585]
[1750267533832,0.002,104350.0,104340.0,1.44841585]
[1750267534301,0.001,104350.0,104340.0,1.44841585]
[1750267534562,0.00962955,104380.0,104370.0,0.28496872]
[1750267534815,5e-05,104380.0,104370.0,0.58429048]
[1750267535036,5e-05,104380.0,104370.0,0.59883133]
[1750267535733,0.0001406,104380.0,104370.0,0.59883133]
[1750267535969,0.0001406,104380.0,104370.0,0.59983133]
[1750267536183,0.0001406,104380.0,104370.0,0.58525048]
[1750267537765,0.0001406,104380.0,104370.0,0.58625048]
[1750267541885,0.0001406,104380.0,104370.0,0.38321048]
[1750267542084,0.28288793,104380.0,104370.0,0.3422089]
[1750267542297,0.27330829,104380.0,104370.0,0.50244899]
[1750267542523,0.27330829,104380.0,104370.0,0.52161112]
[1750267542722,0.27330829,104380.0,104370.0,0.50244899]
[1750267542965,0.27330829,104380.0,104370.0,0.5216113]
[1750267543172,0.27330829,104380.0,104370.0,0.53119232]